bitfinex/quotes_BTCUSD_20250110
["timestamp","ask_amount","ask_price","bid_price","bid_amount"]
[1736486890146,0.00209374,93942.0,93940.0,0.0805]
[1736486897426,0.00209374,93942.0,93941.0,0.212899]
[1736486898273,0.00109374,93942.0,93941.0,0.212899]
[1736486898473,0.00109374,93942.0,93940.0,0.0805]
[1736486898698,0.00209374,93942.0,93940.0,0.0805]
[1736486898939,0.00109374,93942.0,93940.0,0.0805]
[1736486899253,0.00209374,93942.0,93940.0,0.0805]
[1736486899451,0.00109374,93942.0,93940.0,0.0805]
[1736486901286,0.00209374,93942.0,93941.0,0.212899]
[1736486902207,9.374e-05,93942.0,93941.0,0.212899]
[1736486902341,0.00209374,93942.0,93941.0,0.212899]
[1736486907298,0.00209374,93942.0,93940.0,0.0805]
[1736486908249,0.00109374,93942.0,93940.0,0.0805]
[1736486909114,0.00209374,93942.0,93940.0,0.0805]
[1736486911974,0.15,93940.0,93927.0,0.0492]
[1736486912209,0.04099268,93939.0,93919.0,0.0795]
[1736486912352,0.15,93930.0,93919.0,0.0795]
[1736486912950,0.212932,93927.0,93919.0,0.0795]
[1736486913360,0.212924,93931.0,93919.0,0.0795]
[1736486913610,0.15,93930.0,93919.0,0.0795]
[1736486913822,0.15,93930.0,93920.0,0.212946]
[1736486914028,9.374e-05,93942.0,93937.0,0.212907]
[1736486914253,9.374e-05,93942.0,93939.0,0.212904]
[1736486914451,9.374e-05,93942.0,93941.0,0.212899]
[1736486915615,9.374e-05,93942.0,93939.0,0.212904]
[1736486915823,0.00109374,93942.0,93939.0,0.212904]
[1736486916022,0.00309374,93942.0,93939.0,0.212904]
[1736486916699,0.00109374,93942.0,93939.0,0.212904]
[1736486917087,0.00309374,93942.0,93939.0,0.212904]
[1736486917261,0.00209374,93942.0,93939.0,0.212904]
[1736486917464,0.00309374,93942.0,93939.0,0.212904]
[1736486919472,0.00109374,93942.0,93939.0,0.212904]
[1736486919678,0.00309374,93942.0,93939.0,0.212904]
[1736486919875,0.00309374,93942.0,93939.0,0.212903]
[1736486920376,0.00209374,93942.0,93939.0,0.212903]
[1736486920809,0.00309374,93942.0,93939.0,0.212903]
[1736486921799,0.00309374,93942.0,93941.0,0.612899]
[1736486922006,0.00309374,93942.0,93941.0,0.76469876]
[1736486922413,0.00309374,93942.0,93941.0,0.86469876]
[1736486922621,4e-07,93946.0,93945.0,0.36039]
[1736486922828,0.0001706,93956.0,93950.0,0.2]
[1736486923008,0.0001706,93956.0,93950.0,0.64687876]
[1736486925057,0.0001706,93956.0,93950.0,0.64787876]
[1736486925259,0.0001706,93956.0,93950.0,0.67087876]
[1736486925801,0.0001706,93956.0,93955.0,0.312867]
[1736486926015,0.0001706,93956.0,93955.0,0.63675874]
[1736486927317,0.0001706,93956.0,93955.0,0.63875874]
[1736486927847,0.0001706,93956.0,93955.0,1.43375874]
[1736486928252,0.0001706,93956.0,93955.0,1.43875874]
[1736486928462,0.0001706,93956.0,93955.0,1.46175874]
[1736486929744,0.0001706,93956.0,93955.0,1.483577]
[1736486930354,0.0001706,93956.0,93955.0,1.583577]
[1736486937170,0.0001706,93956.0,93955.0,1.581577]
[1736486937375,6e-07,93956.0,93955.0,1.585577]
[1736486937580,6e-07,93959.0,93958.0,0.564661]
[1736486937799,2e-07,93960.0,93959.0,0.3518]
[1736486938043,8.52e-05,93980.0,93959.0,0.3518]
[1736486938044,8e-07,93962.0,93961.0,0.223]
[1736486938172,8e-07,93962.0,93961.0,0.45099976]
[1736486939452,8e-07,93962.0,93961.0,0.45799976]
[1736486940500,8e-07,93962.0,93961.0,0.45999976]
[1736486940731,0.0246,94002.0,93961.0,0.45999976]
[1736486940732,0.15,94005.0,93977.0,0.1251]
[1736486940911,0.00014665,93980.0,93979.0,0.3226]
[1736486941067,0.00014665,93980.0,93979.0,0.63971276]
[1736486942708,0.00014665,93980.0,93979.0,0.85252576]
[1736486943173,0.00014665,93980.0,93979.0,0.3226]
[1736486943339,0.00014665,93980.0,93979.0,0.535413]
[1736486943539,0.00014665,93980.0,93979.0,0.57904084]
[1736486944590,0.00014665,93980.0,93979.0,0.535413]
[1736486945672,0.00014665,93980.0,93979.0,0.63971276]
[1736486947494,0.00014665,93980.0,93979.0,0.76481276]
[1736486959055,0.00014665,93980.0,93979.0,0.71611276]
[1736486984447,0.16990453,94010.0,93979.0,0.50329976]
[1736486984663,0.212747,94008.0,93992.0,0.212783]
[1736486985815,0.212747,94008.0,93992.0,0.213783]
[1736486986405,0.217747,94008.0,93992.0,0.213783]
[1736486987799,0.15,94007.0,93992.0,0.213783]
[1736486988622,0.15,94007.0,93992.0,0.212783]
[1736486989026,0.155,94007.0,93992.0,0.213783]
[1736486989226,0.155,94007.0,93992.0,0.001]
[1736486990557,0.155,94007.0,93992.0,0.0801]
[1736486994659,0.005,94007.0,93992.0,0.0801]
[1736486995719,0.15,94003.0,93992.0,0.0801]
[1736486995922,0.15,94003.0,93993.0,0.04027]
[1736486996789,0.15,94003.0,93992.0,0.0801]
[1736486997639,0.15,94003.0,93992.0,0.0791]
[1736486997841,0.155,94003.0,93993.0,0.001]
[1736486998223,0.005,94003.0,93993.0,0.212781]
[1736486998379,0.005,94003.0,93995.0,0.0788]
[1736486998585,0.15,94007.0,93996.0,0.0461]
[1736486999011,0.005,94003.0,93996.0,0.0461]
[1736487000536,0.02427212,94010.0,93996.0,0.0461]
[1736487000986,0.005,94007.0,93996.0,0.0461]
[1736487001407,0.02427212,94010.0,93996.0,0.0461]
[1736487001842,0.03027212,94010.0,93996.0,0.0461]
[1736487002052,0.03027212,94010.0,93999.0,0.3226]
[1736487002265,0.03027212,94010.0,94006.0,0.08]
[1736487002449,0.03027212,94010.0,94008.0,0.08]
[1736487003732,0.02427212,94010.0,94008.0,0.08]
[1736487003951,0.03027212,94010.0,94008.0,0.08]
[1736487004161,0.36331061,94009.0,94008.0,0.001]
[1736487005457,0.36331061,94009.0,94001.0,0.0821]
[1736487005664,0.36931061,94009.0,94008.0,0.001]
[1736487006878,0.15656561,94009.0,94008.0,0.001]
[1736487007437,0.15,94009.0,94008.0,0.001]
[1736487007654,0.156,94009.0,94008.0,0.001]
[1736487008076,0.15,94009.0,94008.0,0.001]
[1736487008451,0.156,94009.0,94008.0,0.001]
[1736487009245,0.006,94009.0,94008.0,0.0819]
[1736487009419,0.006,94009.0,94008.0,0.343947]
[1736487010278,0.006,94009.0,94008.0,0.342947]
[1736487010717,0.006,94009.0,94008.0,0.44824676]
[1736487010919,0.00014659,94010.0,94008.0,0.43344714]
[1736487011198,0.00014659,94010.0,94009.0,0.18136333]
[1736487011408,0.00014659,94010.0,94009.0,0.17836333]
[1736487011622,0.00014659,94010.0,94009.0,0.55656333]
[1736487011830,0.00014659,94010.0,94009.0,0.65979952]
[1736487012255,0.00214659,94010.0,94009.0,0.55549976]
[1736487012663,0.00014659,94010.0,94009.0,0.55549976]
[1736487012782,0.00114659,94010.0,94009.0,0.55549976]
[1736487014027,0.00114659,94010.0,94009.0,1.15089976]
[1736487016215,0.02368639,94030.0,94019.0,0.1247]
[1736487016426,0.00057374,94020.0,94019.0,0.44278508]
[1736487016603,0.00057374,94020.0,94019.0,0.44172176]
[1736487017190,0.00057374,94020.0,94019.0,0.56472176]
[1736487017392,0.00057374,94020.0,94019.0,0.66902152]
[1736487017569,0.00057374,94020.0,94019.0,0.67002152]
[1736487018369,0.00357374,94020.0,94019.0,0.66902152]
[1736487018600,0.00357374,94020.0,94019.0,0.77002152]
[1736487018810,0.00057374,94020.0,94019.0,0.77002152]
[1736487019206,0.00157374,94020.0,94019.0,0.77002152]
[1736487020598,0.00157374,94020.0,94019.0,1.56402152]
[1736487021543,0.00157374,94020.0,94019.0,1.45972176]
[1736487029373,7.4e-07,94020.0,94019.0,1.45972176]
[1736487029640,8.52e-05,94036.0,94019.0,1.45972176]
[1736487029641,8.52e-05,94036.0,94035.0,0.337686]
[1736487029841,8.52e-05,94036.0,94035.0,0.44934576]
[1736487029959,8.52e-05,94036.0,94035.0,0.54681914]
[1736487031536,0.0010852,94036.0,94035.0,0.54681914]
[1736487032556,0.0010852,94036.0,94035.0,1.34181914]
[1736487032744,0.0010852,94036.0,94035.0,1.46481914]
[1736487033400,0.0010852,94036.0,94035.0,1.56481914]
[1736487036530,8.52e-05,94036.0,94035.0,1.56481914]
[1736487036711,0.0010852,94036.0,94035.0,1.56481914]
[1736487037375,8.52e-05,94036.0,94035.0,1.56481914]
[1736487037605,8.52e-05,94036.0,94035.0,1.56581914]
[1736487038474,8.52e-05,94036.0,94035.0,1.56781914]
[1736487039966,2e-07,94036.0,94035.0,1.56781914]
[1736487041277,2e-07,94036.0,94035.0,1.56481914]
[1736487041604,2e-07,94036.0,94035.0,1.56781914]
[1736487042030,2e-07,94036.0,94035.0,1.57481914]
[1736487042465,8.52e-05,94048.0,94047.0,0.465559]
[1736487042597,0.0002317,94048.0,94047.0,1.54532383]
[1736487043721,0.0002317,94048.0,94047.0,1.54632383]
[1736487044146,0.0002317,94048.0,94047.0,1.54732383]
[1736487045236,9e-07,94050.0,94047.0,1.22492383]
[1736487045444,8.52e-05,94056.0,94055.0,1.1432]
[1736487045667,8.52e-05,94056.0,94055.0,1.24749976]
[1736487045882,8.52e-05,94056.0,94055.0,1.46014076]
[1736487046312,0.212522,94108.0,94055.0,1.46014076]
[1736487046313,0.00172085,94121.0,94090.0,0.360362]
[1736487046552,0.00172085,94121.0,94090.0,1.20617296]
[1736487046795,0.00182339,94091.0,94090.0,1.20617296]
[1736487047879,0.00182339,94091.0,94090.0,1.23617296]
[1736487048095,0.00182339,94091.0,94090.0,1.23217296]
[1736487048543,0.00182339,94091.0,94090.0,1.23817296]
[1736487049437,0.00182339,94091.0,94090.0,1.13817296]
[1736487049655,0.00182339,94091.0,94090.0,1.23817296]
[1736487050545,0.00182339,94091.0,94090.0,0.76577296]
[1736487051201,0.00182339,94091.0,94090.0,0.46422176]
[1736487051667,0.00182339,94091.0,94090.0,0.32586176]
[1736487051868,0.00173025,94091.0,94090.0,0.32586176]
[1736487052305,0.00173025,94091.0,94090.0,0.32286176]
[1736487052736,0.00173025,94091.0,94090.0,0.32386176]
[1736487052957,0.00173025,94091.0,94090.0,0.38096435]
[1736487053161,0.00173025,94091.0,94090.0,0.10429976]
[1736487053391,0.00173025,94091.0,94090.0,0.10729976]
[1736487053569,0.00173025,94091.0,94090.0,0.1093624]
[1736487053939,0.00173025,94091.0,94090.0,0.1083624]
[1736487054147,0.00173025,94091.0,94090.0,0.1053624]
[1736487054363,0.00173025,94091.0,94090.0,0.1093624]
[1736487054566,0.00173025,94091.0,94090.0,0.17158854]
[1736487054987,0.00173025,94091.0,94090.0,0.1093624]
[1736487057129,0.00173025,94091.0,94090.0,0.1083624]
[1736487057322,0.00173025,94091.0,94090.0,0.1063624]
[1736487057696,0.00173025,94091.0,94090.0,0.1093624]
[1736487059488,0.00173025,94091.0,94090.0,0.10829976]
[1736487060167,0.00173025,94091.0,94090.0,0.004]
[1736487061691,0.00173025,94091.0,94090.0,0.003]
[1736487062302,0.00173025,94091.0,94090.0,0.0245569]
[1736487062476,0.00173025,94091.0,94090.0,0.0215569]
[1736487062707,0.00173025,94091.0,94086.0,0.425138]
[1736487062886,0.00173025,94091.0,94088.0,0.212566]
[1736487063090,0.00173025,94091.0,94090.0,0.212562]
[1736487063297,0.00173025,94091.0,94090.0,0.31686176]
[1736487064098,0.00173025,94091.0,94090.0,0.10429976]
[1736487064340,0.00173025,94091.0,94090.0,0.10536244]
[1736487064943,0.00173025,94091.0,94090.0,0.15841208]
[1736487066433,0.00173025,94091.0,94090.0,0.10736244]
[1736487066608,0.00173025,94091.0,94090.0,0.10836244]
[1736487067438,0.00173025,94091.0,94090.0,0.10736244]
[1736487068257,0.00173025,94091.0,94090.0,0.10429976]
[1736487073062,0.00173025,94091.0,94090.0,0.10536246]
[1736487074164,0.00173025,94091.0,94090.0,0.10636246]
[1736487076145,0.00173025,94091.0,94090.0,0.10529976]
[1736487076737,0.00173025,94091.0,94090.0,0.10636242]
[1736487076960,0.00173025,94091.0,94090.0,0.18236242]
[1736487077370,0.00173025,94091.0,94090.0,0.23026242]
[1736487077569,0.00173025,94091.0,94090.0,0.22919976]
[1736487077769,0.00173025,94091.0,94090.0,0.29463344]
[1736487077973,0.00173025,94091.0,94090.0,0.29363344]
[1736487079021,0.00173025,94091.0,94090.0,0.22819976]
[1736487079231,0.00173025,94091.0,94090.0,0.23219976]
[1736487079672,0.00173025,94091.0,94090.0,0.22819976]
[1736487079869,0.00173025,94091.0,94090.0,0.23119976]
[1736487080068,0.00173025,94091.0,94090.0,0.22919976]
[1736487080483,0.0023545,94100.0,94099.0,0.212542]
[1736487080722,0.0023545,94100.0,94099.0,0.56364176]
[1736487080897,0.0023545,94100.0,94099.0,0.69671814]
[1736487081577,0.0023545,94100.0,94099.0,0.66364176]
[1736487081788,0.0023545,94100.0,94099.0,0.69670789]
[1736487082244,0.0023545,94100.0,94099.0,0.77800765]
[1736487082621,0.0023545,94100.0,94099.0,0.76794152]
[1736487082862,0.0023545,94100.0,94099.0,0.77694152]
[1736487083063,0.0023545,94100.0,94099.0,0.48100176]
[1736487083284,0.0023545,94100.0,94099.0,0.47200176]
[1736487083483,0.0023545,94100.0,94099.0,0.48100176]
[1736487083689,0.0023545,94100.0,94099.0,0.44800176]
[1736487083918,0.0023545,94100.0,94099.0,0.45300176]
[1736487084104,0.0023545,94100.0,94099.0,0.56200176]
[1736487084300,0.0023545,94100.0,94099.0,0.55300176]
[1736487084538,0.0023545,94100.0,94099.0,0.54800176]
[1736487084937,0.0023545,94100.0,94099.0,0.10429976]
[1736487085366,0.0023545,94100.0,94099.0,0.19029976]
[1736487085604,0.0023545,94100.0,94099.0,0.23836232]
[1736487085819,0.0023545,94100.0,94099.0,0.24629976]
[1736487086046,0.0023545,94100.0,94099.0,0.26018097]
[1736487086266,0.0023545,94100.0,94099.0,0.23729976]
[1736487086644,0.0023545,94100.0,94099.0,0.23229976]
[1736487086853,0.0023545,94100.0,94099.0,0.23929976]
[1736487087273,0.0023545,94100.0,94099.0,0.23229976]
[1736487087468,0.0023545,94100.0,94099.0,0.24229976]
[1736487088081,0.0023545,94100.0,94099.0,0.23929976]
[1736487088280,0.0023545,94100.0,94099.0,0.24229976]
[1736487088792,0.0023545,94100.0,94099.0,0.23529976]
[1736487088987,0.0023545,94100.0,94099.0,0.33129504]
[1736487089993,0.0023545,94100.0,94099.0,0.24329976]
[1736487090415,0.0023545,94100.0,94099.0,0.24029976]
[1736487090626,0.0023545,94100.0,94099.0,0.24329976]
[1736487090805,0.0023545,94100.0,94099.0,0.23529976]
[1736487091224,0.0023545,94100.0,94099.0,0.23229976]
[1736487091430,0.0023545,94100.0,94099.0,0.23529976]
[1736487091805,0.0023545,94100.0,94099.0,0.30133944]
[1736487092214,0.0023545,94100.0,94099.0,0.30933944]
[1736487092422,0.0023545,94100.0,94099.0,0.30133944]
[1736487092833,0.0023545,94100.0,94099.0,0.30533944]
[1736487093042,0.0023545,94100.0,94099.0,0.30133944]
[1736487093475,0.0023545,94100.0,94099.0,0.30833944]
[1736487094478,0.0023545,94100.0,94099.0,0.30533944]
[1736487094861,0.0023545,94100.0,94099.0,0.30833944]
[1736487095332,0.0023545,94100.0,94099.0,0.30133944]
[1736487095741,0.0023545,94100.0,94099.0,0.30933944]
[1736487095949,0.0023545,94100.0,94099.0,0.23529976]
[1736487096158,0.0023545,94100.0,94099.0,0.24329976]
[1736487096379,0.0023545,94100.0,94099.0,0.24029976]
[1736487096687,0.0023545,94100.0,94099.0,0.24329976]
[1736487097128,0.0023545,94100.0,94099.0,0.24029976]
[1736487097536,0.0023545,94100.0,94099.0,0.24329976]
[1736487097742,0.0023545,94100.0,94099.0,0.11529976]
[1736487097961,0.0023545,94100.0,94099.0,0.11229976]
[1736487098400,0.0023545,94100.0,94099.0,0.10429976]
[1736487098635,0.0023545,94100.0,94099.0,0.11229976]
[1736487098849,0.0023545,94100.0,94099.0,0.10429976]
[1736487099290,0.0023545,94100.0,94099.0,0.11229976]
[1736487099501,0.0023545,94100.0,94099.0,0.11529976]
[1736487099937,0.0023545,94100.0,94099.0,0.10429976]
[1736487100354,0.0023545,94100.0,94099.0,0.11336235]
[1736487107459,0.0023545,94100.0,94099.0,0.19336235]
[1736487108496,0.0023545,94100.0,94099.0,0.23686235]
[1736487108684,0.0023545,94100.0,94099.0,0.23379976]
[1736487108872,0.0023545,94100.0,94099.0,0.24179976]
[1736487109125,0.0023545,94100.0,94099.0,0.30248914]
[1736487109476,0.0023545,94100.0,94099.0,0.30848914]
[1736487109683,0.0023545,94100.0,94099.0,0.30448914]
[1736487110098,0.0023545,94100.0,94099.0,0.31348914]
[1736487110313,0.0023545,94100.0,94099.0,0.30448914]
[1736487111104,0.0023545,94100.0,94099.0,0.23379976]
[1736487111788,0.0023545,94100.0,94099.0,0.24279976]
[1736487112554,0.0023545,94100.0,94099.0,0.24579976]
[1736487116017,0.0023545,94100.0,94099.0,0.44579976]
[1736487118350,0.0023545,94100.0,94099.0,0.31629976]
[1736487119114,0.0023545,94100.0,94099.0,0.212]
[1736487120550,0.0023545,94100.0,94099.0,0.35575456]
[1736487120751,0.0023545,94100.0,94099.0,0.43885456]
[1736487121100,0.00736,94135.0,94108.0,0.212519]
[1736487121279,0.00048806,94120.0,94105.0,0.212528]
[1736487122116,0.00048806,94120.0,94109.0,0.212517]
[1736487122352,0.00048806,94120.0,94111.0,0.212515]
[1736487122545,0.00048806,94120.0,94111.0,0.292615]
[1736487123370,0.00148806,94120.0,94111.0,0.292615]
[1736487123787,0.00048806,94120.0,94111.0,0.292615]
[1736487123998,0.00048806,94120.0,94111.0,0.293615]
[1736487126173,0.00048806,94120.0,94112.0,0.0506143]
[1736487126308,0.00048806,94120.0,94111.0,0.293615]
[1736487126758,0.00048806,94120.0,94117.0,0.425]
[1736487127389,0.00048806,94120.0,94119.0,0.212496]
[1736487128004,0.00048806,94120.0,94119.0,0.288396]
[1736487128625,0.00048806,94120.0,94119.0,0.39269576]
[1736487128858,0.00048806,94120.0,94119.0,0.45835524]
[1736487129248,0.00048806,94120.0,94119.0,0.46235524]
[1736487129456,0.00048806,94120.0,94119.0,0.39269576]
[1736487129865,0.00048806,94120.0,94119.0,0.39669576]
[1736487130086,0.00048806,94120.0,94119.0,0.39469576]
[1736487130295,0.00048806,94120.0,94119.0,0.44079576]
[1736487130491,0.00048806,94120.0,94119.0,0.43879576]
[1736487130703,0.00048806,94120.0,94119.0,0.51466124]
[1736487130911,0.00048806,94120.0,94119.0,0.51766124]
[1736487131318,0.00048806,94120.0,94119.0,0.54572033]
[1736487131729,0.00048806,94120.0,94119.0,0.51766124]
[1736487131932,0.00048806,94120.0,94119.0,0.52666124]
[1736487132141,0.00048806,94120.0,94119.0,0.45079576]
[1736487132353,0.00048806,94120.0,94119.0,0.44779576]
[1736487132603,0.00048806,94120.0,94119.0,0.45279576]
[1736487141085,0.00048806,94120.0,94119.0,0.46015576]
[1736487142291,0.00048806,94120.0,94119.0,0.45279576]
[1736487142703,0.00048806,94120.0,94119.0,0.40669576]
[1736487143352,0.00048806,94120.0,94119.0,0.40169576]
[1736487143567,0.00048806,94120.0,94119.0,0.009]
[1736487143772,0.00048806,94120.0,94119.0,0.011]
[1736487144389,0.00048806,94120.0,94119.0,0.002]
[1736487144639,0.00048806,94120.0,94119.0,0.008]
[1736487144851,0.00048806,94120.0,94119.0,0.006]
[1736487145061,0.00048806,94120.0,94116.0,0.425005]
[1736487145264,0.00048806,94120.0,94119.0,0.006]
[1736487146000,0.00048806,94120.0,94119.0,0.23903024]
[1736487146200,0.00048806,94120.0,94119.0,0.18749976]
[1736487146408,0.00048806,94120.0,94119.0,0.18856209]
[1736487146829,0.00048806,94120.0,94119.0,0.18656209]
[1736487147070,0.00048806,94120.0,94119.0,0.18856209]
[1736487147557,0.00048806,94120.0,94119.0,0.18656209]
[1736487148003,0.00048806,94120.0,94119.0,0.19549976]
[1736487148177,0.00048806,94120.0,94119.0,0.18949976]
[1736487148375,0.00048806,94120.0,94119.0,0.19056209]
[1736487148619,0.00048806,94120.0,94119.0,0.19956209]
[1736487148753,0.00048806,94120.0,94119.0,0.19056209]
[1736487148963,0.00048806,94120.0,94119.0,0.19956209]
[1736487149163,0.00048806,94120.0,94119.0,0.19556209]
[1736487149585,0.00048806,94120.0,94119.0,0.19956209]
[1736487150211,0.00048806,94120.0,94119.0,0.24736209]
[1736487150412,0.00048806,94120.0,94119.0,0.24629976]
[1736487151015,0.00048806,94120.0,94119.0,0.26929976]
[1736487151188,0.00048806,94120.0,94119.0,0.26529976]
[1736487151389,0.00048806,94120.0,94119.0,0.25629976]
[1736487151589,0.00048806,94120.0,94119.0,0.35416624]
[1736487152612,0.00048806,94120.0,94119.0,0.35816624]
[1736487153175,0.00048806,94120.0,94119.0,0.35416624]
[1736487153383,0.00048806,94120.0,94119.0,0.35816624]
[1736487158924,0.00048806,94120.0,94119.0,0.45816624]
[1736487159132,0.00048806,94120.0,94119.0,0.36929976]
[1736487163423,0.00048806,94120.0,94119.0,0.40232186]
[1736487164090,6e-08,94120.0,94119.0,0.50232186]
[1736487164323,6e-08,94120.0,94119.0,0.65232186]
[1736487165414,6e-08,94120.0,94119.0,0.63932186]
[1736487165617,8.52e-05,94138.0,94119.0,0.63932186]
[1736487165618,8.52e-05,94138.0,94119.0,0.74862162]
[1736487165845,0.00023156,94138.0,94137.0,0.46615576]
[1736487166082,0.00023156,94138.0,94137.0,0.47351576]
[1736487168021,0.00023156,94138.0,94137.0,0.47851576]
[1736487168221,0.00023156,94138.0,94137.0,0.47351576]
[1736487168621,0.00023156,94138.0,94137.0,0.48751576]
[1736487169031,0.00023156,94138.0,94137.0,0.50657225]
[1736487169858,0.00023156,94138.0,94137.0,0.54389802]
[1736487170479,0.00023156,94138.0,94137.0,0.52484153]
[1736487171324,0.00023156,94138.0,94137.0,0.48751576]
[1736487172647,0.00023156,94138.0,94137.0,0.46451576]
[1736487173898,0.00737806,94150.0,94149.0,0.212429]
[1736487174126,0.00737806,94150.0,94149.0,0.31672876]
[1736487175143,0.00737806,94150.0,94149.0,0.31972876]
[1736487175372,0.00737806,94150.0,94149.0,0.32672876]
[1736487178867,0.00737806,94150.0,94149.0,0.01]
[1736487179906,0.00737806,94150.0,94149.0,0.11429976]
[1736487198327,0.00737806,94150.0,94149.0,0.19089976]
[1736487199924,0.00737806,94150.0,94149.0,0.23719976]
[1736487204171,0.00050243,94152.0,94150.0,0.212426]
[1736487204386,0.00050243,94152.0,94151.0,0.10536172]
[1736487205778,0.00050243,94152.0,94151.0,0.20535284]
[1736487205979,0.00050243,94152.0,94151.0,0.21029088]
[1736487206625,0.00050243,94152.0,94151.0,0.25549088]
[1736487207179,0.00050243,94152.0,94151.0,0.23579976]
[1736487207380,0.00050243,94152.0,94151.0,0.26079976]
[1736487207588,8.52e-05,94173.0,94156.0,0.424826]
[1736487207832,8.52e-05,94173.0,94160.0,0.25189976]
[1736487209100,8.52e-05,94173.0,94160.0,0.25389976]
[1736487209683,8.52e-05,94173.0,94160.0,0.28294258]
[1736487210268,8.52e-05,94173.0,94160.0,0.29874954]
[1736487210696,8.52e-05,94173.0,94160.0,0.29674954]
[1736487210888,8.52e-05,94173.0,94160.0,0.31074954]
[1736487211797,8.52e-05,94173.0,94160.0,0.41074954]
[1736487212452,8.52e-05,94173.0,94160.0,0.38170672]
[1736487213331,8.52e-05,94173.0,94160.0,0.38406672]
[1736487213549,8.52e-05,94173.0,94160.0,0.38006672]
[1736487213958,8.52e-05,94173.0,94160.0,0.38906672]
[1736487214172,8.52e-05,94173.0,94160.0,0.28906672]
[1736487214382,8.52e-05,94173.0,94160.0,0.24289976]
[1736487214597,8.52e-05,94173.0,94160.0,0.10929976]
[1736487214805,0.01817177,94167.0,94150.0,0.00736]
[1736487215020,0.01817177,94167.0,94160.0,0.009]
[1736487215197,0.01817177,94167.0,94160.0,0.014]
[1736487215644,0.23056177,94167.0,94160.0,0.014]
[1736487216494,0.23056177,94167.0,94160.0,0.005]
[1736487216932,0.23056177,94167.0,94155.0,0.212414]
[1736487217071,0.23056177,94167.0,94151.0,0.10429976]
[1736487217519,0.00107,94161.0,94151.0,0.10429976]
[1736487217731,7e-05,94161.0,94151.0,0.10429976]
[1736487218107,0.00207,94161.0,94152.0,0.212422]
[1736487218315,7e-05,94161.0,94152.0,0.31672176]
[1736487219363,7e-05,94161.0,94147.0,0.212432]
[1736487219503,7e-05,94161.0,94149.0,0.212429]
[1736487219738,0.00107,94161.0,94150.0,0.10429976]
[1736487219945,7e-05,94161.0,94150.0,0.10429976]
[1736487220164,0.00107,94161.0,94150.0,0.10429976]
[1736487220372,0.00107,94161.0,94151.0,0.212424]
[1736487220575,7e-05,94161.0,94151.0,0.10429976]
[1736487220773,0.00107,94161.0,94149.0,0.212429]
[1736487220978,0.00107,94161.0,94145.0,0.212436]
[1736487220979,0.15,94159.0,94145.0,0.212436]
[1736487223793,0.151,94159.0,94145.0,0.212436]
[1736487224008,0.151,94159.0,94142.0,0.212442]
[1736487224213,0.151,94159.0,94143.0,0.10429976]
[1736487224410,0.151,94159.0,94144.0,0.21244]
[1736487224610,0.212408,94158.0,94144.0,0.21244]
[1736487225421,0.15,94155.0,94138.0,0.00576844]
[1736487225840,0.212443,94143.0,94138.0,0.00576844]
[1736487226737,0.15,94145.0,94138.0,0.00576844]
[1736487226917,0.001,94143.0,94138.0,0.00576844]
[1736487227683,0.15,94147.0,94138.0,0.00576844]
[1736487227949,0.22848807,94148.0,94138.0,0.00576844]
[1736487229144,0.002,94143.0,94138.0,0.00576844]
[1736487229462,0.15,94147.0,94138.0,0.02759188]
[1736487229677,0.15,94145.0,94138.0,0.00576844]
[1736487230530,0.15,94141.0,94138.0,0.00576844]
[1736487231204,0.212445,94142.0,94138.0,0.00576844]
[1736487231205,0.15,94139.0,94138.0,0.00576844]
[1736487232517,0.25,94139.0,94138.0,0.00576844]
[1736487232719,0.25032512,94139.0,94138.0,0.00576844]
[1736487233109,0.35032512,94139.0,94138.0,0.00576844]
[1736487233310,0.35232512,94139.0,94138.0,0.00576844]
[1736487233529,0.25032512,94139.0,94138.0,0.00576844]
[1736487233747,0.25032512,94139.0,94138.0,0.00676844]
[1736487233936,0.25232512,94139.0,94138.0,0.00676844]
[1736487234534,0.25332512,94139.0,94138.0,0.00676844]
[1736487234964,0.35332512,94139.0,94138.0,0.00676844]
[1736487235312,0.35232512,94139.0,94138.0,0.00676844]
[1736487235493,0.35332512,94139.0,94138.0,0.00676844]
[1736487235936,0.25332512,94139.0,94138.0,0.00676844]
[1736487239653,0.35332512,94139.0,94138.0,0.00676844]
[1736487239864,0.15332512,94139.0,94138.0,0.00676844]
[1736487240036,0.153,94139.0,94138.0,0.00676844]
[1736487240758,0.003,94139.0,94138.0,0.00676844]
[1736487240962,0.002,94139.0,94138.0,0.00676844]
[1736487241374,0.003,94139.0,94138.0,0.00676844]
[1736487241585,0.001,94139.0,94138.0,0.00576844]
[1736487241818,0.15,94139.0,94138.0,0.00576844]
[1736487241946,0.155,94139.0,94138.0,0.00576844]
[1736487242612,0.158,94139.0,94138.0,0.00576844]
[1736487242812,0.15,94146.0,94138.0,0.00576844]
[1736487243018,0.01605507,94148.0,94138.0,0.00576844]
[1736487243019,0.212444,94143.0,94138.0,0.00576844]
[1736487243202,0.002,94139.0,94138.0,0.08336844]
[1736487243406,0.15,94140.0,94138.0,0.08336844]
[1736487244037,0.362451,94139.0,94138.0,0.08336844]
[1736487244242,0.362451,94139.0,94138.0,0.00576844]
[1736487244806,0.364451,94139.0,94138.0,0.00576844]
[1736487245127,0.362451,94139.0,94138.0,0.00576844]
[1736487245342,0.364451,94139.0,94138.0,0.00576844]
[1736487247122,0.365451,94139.0,94138.0,0.00576844]
[1736487249927,0.153,94139.0,94138.0,0.00576844]
[1736487250362,0.003,94139.0,94138.0,0.13236844]
[1736487251216,0.002,94139.0,94138.0,0.13236844]
[1736487251766,0.15,94151.0,94138.0,0.13236844]
[1736487251964,0.16481602,94151.0,94138.0,0.13336844]
[1736487252377,0.16481602,94151.0,94138.0,0.13236844]
[1736487252649,0.16481602,94151.0,94138.0,0.13636844]
[1736487253045,0.01481602,94151.0,94139.0,0.26857884]
[1736487253252,0.01681602,94151.0,94141.0,0.0761]
[1736487253465,0.002,94151.0,94141.0,0.288547]
[1736487254641,0.003,94151.0,94142.0,0.0831]
[1736487254843,0.001,94151.0,94144.0,0.0831]
[1736487255050,0.01559722,94151.0,94144.0,0.0831]
[1736487255434,0.001,94151.0,94144.0,0.0831]
[1736487255655,0.002,94151.0,94146.0,0.212435]
[1736487255841,0.002,94151.0,94147.0,0.1277]
[1736487256042,0.002,94151.0,94148.0,0.0782]
[1736487256245,0.001,94151.0,94148.0,0.0782]
[1736487256791,0.002,94151.0,94148.0,0.0782]
[1736487257020,0.001,94151.0,94148.0,0.0782]
[1736487257998,0.01483618,94155.0,94148.0,0.0782]
[1736487258215,0.15007,94161.0,94148.0,0.0782]
[1736487258216,0.01649062,94154.0,94148.0,0.0782]